fUST/lending_fUST_20250216
["ID","MTS","AMOUNT","RATE_DAILY","PERIOD"]
[353238504,1739701839860,-742.48,8.766e-05,2]
[353238505,1739701839869,-734.73,8.766e-05,2]
[353238506,1739701839879,-1222.84,8.766e-05,2]
[353238507,1739701839888,-500.0,8.766e-05,2]
[353238508,1739701839898,-500.0,8.766e-05,2]
[353238509,1739701839907,-500.0,8.766e-05,2]
[353238510,1739701839916,-697.48,8.766e-05,2]
[353238511,1739701839927,-1317.31,8.766e-05,2]
[353238512,1739701839936,-500.0,8.766e-05,2]
[353238513,1739701839946,-500.0,8.766e-05,2]
[353238514,1739701839958,-500.0,8.766e-05,2]
[353238515,1739701839968,-500.0,8.766e-05,2]
[353238516,1739701839978,-500.0,8.766e-05,2]
[353238517,1739701839987,-500.0,8.766e-05,2]
[353238518,1739701839997,-500.0,8.766e-05,2]
[353238519,1739701840007,-500.0,8.766e-05,2]
[353238520,1739701840016,-3156.23,8.766e-05,2]
[353238521,1739701840025,-708.88,8.766e-05,2]
[353238522,1739701840034,-6414.20668785,8.766e-05,2]
[353238523,1739701840047,-8121.35331215,8.766e-05,2]
[353238524,1739701840057,-500.0,8.766e-05,2]
[353238525,1739701840067,-919.37,8.766e-05,2]
[353238526,1739701840076,-500.0,8.766e-05,2]
[353238527,1739701840085,-1052.8,8.766e-05,2]
[353238528,1739701840094,-661.79,8.766e-05,2]
[353238529,1739701840104,-500.0,8.766e-05,2]
[353238530,1739701840115,-500.0,8.766e-05,2]
[353238531,1739701840125,-500.0,8.766e-05,2]
[353238532,1739701840134,-678.58,8.766e-05,2]
[353238534,1739701840144,-5196.57561612,8.766e-05,2]
[353238536,1739701840156,-2347.49820123,8.766e-05,2]
[353238538,1739701840169,-18377.09367002,8.766e-05,2]
[353238541,1739701840184,-3412.42525625,8.766e-05,2]
[353238543,1739701840225,-4340.19725638,8.766e-05,2]
[353238544,1739701840240,-500.0,8.767e-05,2]
[353238545,1739701840257,-622.90287924,8.767e-05,2]
[353238546,1739701840272,-500.0,8.767e-05,2]
[353238548,1739701840287,-500.0,8.767e-05,2]
[353238550,1739701840301,-500.0,8.767e-05,2]
[353238551,1739701840315,-186.48804255,8.767e-05,2]
[353238552,1739701840332,-500.0,8.767e-05,2]
[353238555,1739701840347,-527.91943707,8.767e-05,2]
[353238557,1739701840358,-500.0,8.767e-05,2]
[353238558,1739701840372,-500.0,8.767e-05,2]
[353238559,1739701840388,-500.0,8.767e-05,2]
[353238560,1739701840404,-500.0,8.767e-05,2]
[353238561,1739701840420,-500.0,8.767e-05,2]
[353238562,1739701840435,-500.0,8.767e-05,2]
[353238563,1739701840447,-500.0,8.767e-05,2]
[353238564,1739701840459,-500.0,8.767e-05,2]
[353238565,1739701840475,-500.0,8.767e-05,2]
[353238566,1739701840489,-500.0,8.767e-05,2]
[353238567,1739701840502,-500.0,8.767e-05,2]
[353238569,1739701840516,-500.0,8.767e-05,2]
[353238572,1739701840531,-500.0,8.767e-05,2]
[353238574,1739701840543,-256.78257414,8.767e-05,2]
[353238576,1739701840561,-243.21742586,8.767e-05,2]
[353238577,1739701840575,-500.0,8.767e-05,2]
[353238579,1739701840587,-500.0,8.767e-05,2]
[353238581,1739701840600,-500.0,8.767e-05,2]
[353238583,1739701840613,-500.0,8.767e-05,2]
[353238584,1739701840625,-500.0,8.767e-05,2]
[353238585,1739701840638,-640.53785926,8.767e-05,2]
[353238586,1739701840651,-500.0,8.767e-05,2]
[353238588,1739701840663,-500.0,8.767e-05,2]
[353238589,1739701840676,-500.0,8.767e-05,2]
[353238590,1739701840688,-500.0,8.767e-05,2]
[353238591,1739701840701,-500.0,8.767e-05,2]
[353238592,1739701840714,-500.0,8.767e-05,2]
[353238593,1739701840727,-501.04512962,8.767e-05,2]
[353238594,1739701840739,-472.66903431,8.767e-05,2]
[353238595,1739701840751,-500.0,8.767e-05,2]
[353238596,1739701840764,-500.0,8.767e-05,2]
[353238597,1739701840776,-253.87792953,8.767e-05,2]
[353238598,1739701840789,-500.0,8.767e-05,2]
[353238599,1739701840801,-636.21089963,8.767e-05,2]
[353238601,1739701840813,-500.0,8.767e-05,2]
[353238602,1739701840826,-500.0,8.767e-05,2]
[353238603,1739701840839,-500.0,8.767e-05,2]
[353238604,1739701840851,-500.0,8.767e-05,2]
[353238605,1739701840865,-500.0,8.767e-05,2]
[353238606,1739701840878,-500.0,8.767e-05,2]
[353238607,1739701840891,-340.76899894,8.767e-05,2]
[353238608,1739701840904,-500.0,8.767e-05,2]
[353238609,1739701840916,-500.0,8.767e-05,2]
[353238610,1739701840929,-500.0,8.767e-05,2]
[353238611,1739701840942,-500.0,8.767e-05,2]
[353238612,1739701840976,-500.0,8.767e-05,2]
[353238613,1739701840997,-500.0,8.767e-05,2]
[353238614,1739701841015,-501.55,8.767e-05,2]
[353238615,1739701841032,-500.0,8.767e-05,2]
[353238616,1739701841050,-500.0,8.767e-05,2]
[353238617,1739701841064,-500.0,8.767e-05,2]
[353238618,1739701841080,-500.0,8.767e-05,2]
[353238619,1739701841094,-500.0,8.767e-05,2]
[353238620,1739701841108,-500.0,8.767e-05,2]
[353238621,1739701841122,-500.0,8.767e-05,2]
[353238622,1739701841135,-500.0,8.767e-05,2]
[353238623,1739701841149,-500.0,8.767e-05,2]
[353238624,1739701841163,-500.0,8.767e-05,2]
[353238625,1739701841178,-500.0,8.767e-05,2]
[353238626,1739701841187,-500.0,8.767e-05,2]
[353238627,1739701841197,-500.0,8.767e-05,2]
[353238628,1739701841207,-628.53,8.767e-05,2]
[353238629,1739701841382,-500.0,8.767e-05,2]
[353238630,1739701841399,-500.0,8.767e-05,2]
[353238631,1739701841409,-504.47189125,8.767e-05,2]
[353238632,1739701841419,-500.0,8.767e-05,2]
[353238633,1739701841428,-500.0,8.767e-05,2]
[353238634,1739701841438,-500.0,8.767e-05,2]
[353238635,1739701841447,-500.0,8.767e-05,2]
[353238636,1739701841457,-830.52,8.767e-05,2]
[353238637,1739701841467,-500.0,8.767e-05,2]
[353238638,1739701841476,-500.0,8.767e-05,2]
[353238639,1739701841486,-500.0,8.767e-05,2]
[353238640,1739701841495,-2003.42,8.767e-05,2]
[353238641,1739701841505,-500.0,8.767e-05,2]
[353238642,1739701841515,-500.0,8.767e-05,2]
[353238643,1739701841524,-500.0,8.767e-05,2]
[353238644,1739701841534,-500.0,8.767e-05,2]
[353238645,1739701841543,-500.0,8.767e-05,2]
[353238646,1739701841552,-500.0,8.767e-05,2]
[353238647,1739701841562,-500.0,8.767e-05,2]
[353238648,1739701841572,-500.0,8.767e-05,2]
[353238649,1739701841581,-500.0,8.767e-05,2]
[353238650,1739701841591,-624.90295096,8.767e-05,2]
[353238651,1739701841600,-500.0,8.767e-05,2]
[353238652,1739701841610,-503.78936764,8.767e-05,2]
[353238653,1739701841619,-500.0,8.767e-05,2]
[353238654,1739701841628,-500.0,8.767e-05,2]
[353238655,1739701841638,-500.0,8.767e-05,2]
[353238656,1739701841647,-247.49734324,8.767e-05,2]
[353238657,1739701841656,-500.0,8.767e-05,2]
[353238658,1739701841666,-500.0,8.767e-05,2]
[353238659,1739701841675,-343.50320879,8.767e-05,2]
[353238660,1739701841684,-500.0,8.767e-05,2]
[353238661,1739701841694,-500.0,8.767e-05,2]
[353238662,1739701841704,-500.0,8.767e-05,2]
[353238663,1739701841713,-500.0,8.767e-05,2]
[353238664,1739701841724,-500.0,8.767e-05,2]
[353238665,1739701841734,-511.87366295,8.767e-05,2]
[353238666,1739701841744,-500.0,8.767e-05,2]
[353238667,1739701841754,-737.07,8.767e-05,2]
[353238668,1739701841763,-500.0,8.767e-05,2]
[353238669,1739701841773,-887.96,8.767e-05,2]
[353238670,1739701841783,-500.0,8.767e-05,2]
[353238671,1739701841792,-500.0,8.767e-05,2]
[353238672,1739701841803,-643.37,8.767e-05,2]
[353238673,1739701841813,-892.5,8.767e-05,2]
[353238674,1739701841823,-2006.93,8.767e-05,2]
[353238675,1739701841832,-402.62636359,8.767e-05,2]
[353238676,1739701841842,-500.0,8.767e-05,2]
[353238677,1739701841852,-500.0,8.767e-05,2]
[353238678,1739701841862,-500.0,8.767e-05,2]
[353238679,1739701841870,-500.0,8.767e-05,2]
[353238680,1739701841879,-500.0,8.767e-05,2]
[353238681,1739701841888,-500.0,8.767e-05,2]
[353238682,1739701841898,-500.0,8.767e-05,2]
[353238683,1739701841908,-500.0,8.767e-05,2]
[353238684,1739701841919,-500.0,8.767e-05,2]
[353238685,1739701841928,-500.21380251,8.767e-05,2]
[353238686,1739701841938,-500.0,8.767e-05,2]
[353238687,1739701841949,-500.0,8.767e-05,2]
[353238688,1739701841959,-500.0,8.767e-05,2]
[353238689,1739701841968,-500.0,8.767e-05,2]
[353238690,1739701841977,-500.0,8.767e-05,2]
[353238691,1739701841987,-500.0,8.767e-05,2]
[353238692,1739701841997,-503.28146035,8.767e-05,2]
[353238693,1739701842006,-500.0,8.767e-05,2]
[353238694,1739701842015,-500.0,8.767e-05,2]
[353238695,1739701842024,-580.62,8.767e-05,2]
[353238696,1739701842034,-500.28677829,8.767e-05,2]
[353238697,1739701842044,-500.0,8.767e-05,2]
[353238698,1739701842054,-500.0,8.767e-05,2]
[353238699,1739701842063,-500.0,8.767e-05,2]
[353238700,1739701842072,-500.0,8.767e-05,2]
[353238701,1739701842081,-500.0,8.767e-05,2]
[353238702,1739701842090,-503.65437684,8.767e-05,2]
[353238703,1739701842099,-500.60520693,8.767e-05,2]
[353238704,1739701842109,-500.0,8.767e-05,2]
[353238705,1739701842118,-538.46,8.767e-05,2]
[353238706,1739701842127,-502.89722518,8.767e-05,2]
[353238707,1739701842137,-500.0,8.767e-05,2]
[353238708,1739701842146,-500.0,8.767e-05,2]
[353238709,1739701842156,-206.73585661,8.767e-05,2]
[353238710,1739701842167,-500.0,8.767e-05,2]
[353238711,1739701842178,-500.0,8.767e-05,2]
[353238712,1739701842188,-500.0,8.767e-05,2]
[353238713,1739701842197,-500.0,8.767e-05,2]
[353238714,1739701842207,-500.0,8.767e-05,2]
[353238715,1739701842216,-500.0,8.767e-05,2]
[353238716,1739701842226,-500.0,8.767e-05,2]
[353238717,1739701842236,-500.0,8.767e-05,2]
[353238718,1739701842245,-597.13142421,8.767e-05,2]
[353238719,1739701842254,-556.13545161,8.767e-05,2]
[353238720,1739701842263,-500.0,8.767e-05,2]
[353238721,1739701842272,-500.0,8.767e-05,2]
[353238722,1739701842282,-500.0,8.767e-05,2]
[353238723,1739701842291,-500.0,8.767e-05,2]
[353238724,1739701842300,-500.0,8.767e-05,2]
[353238725,1739701842309,-500.0,8.767e-05,2]
[353238726,1739701842318,-500.0,8.767e-05,2]
[353238727,1739701842327,-584.94,8.767e-05,2]
[353238728,1739701842336,-505.60293237,8.767e-05,2]
[353238729,1739701842346,-500.0,8.767e-05,2]
[353238730,1739701842355,-663.92,8.767e-05,2]
[353238731,1739701842364,-500.0,8.767e-05,2]
[353238732,1739701842373,-500.0,8.767e-05,2]
[353238733,1739701842383,-500.80926623,8.767e-05,2]
[353238734,1739701842391,-500.0,8.767e-05,2]
[353238735,1739701842400,-500.0,8.767e-05,2]
[353238736,1739701842410,-303.78036117,8.767e-05,2]
[353238737,1739701842419,-500.0,8.767e-05,2]
[353238738,1739701842428,-500.0,8.767e-05,2]
[353238739,1739701842438,-500.0,8.767e-05,2]
[353238740,1739701842447,-500.0,8.767e-05,2]
[353238741,1739701842456,-500.0,8.767e-05,2]
[353238742,1739701842465,-500.0,8.767e-05,2]
[353238743,1739701842474,-500.0,8.767e-05,2]
[353238744,1739701842483,-500.0,8.767e-05,2]
[353238745,1739701842492,-500.0,8.767e-05,2]
[353238746,1739701842502,-280.91450151,8.767e-05,2]
[353238747,1739701842511,-500.0,8.767e-05,2]
[353238748,1739701842520,-500.49467115,8.767e-05,2]
[353238749,1739701842530,-500.0,8.767e-05,2]
[353238750,1739701842539,-500.0,8.767e-05,2]
[353238751,1739701842548,-500.0,8.767e-05,2]
[353238752,1739701842557,-500.0,8.767e-05,2]
[353238753,1739701842566,-590.91,8.767e-05,2]
[353238754,1739701842575,-500.11331885,8.767e-05,2]
[353238755,1739701842584,-537.2282475,8.767e-05,2]
[353238756,1739701842593,-527.40503021,8.767e-05,2]
[353238757,1739701842602,-502.68155752,8.767e-05,2]
[353238758,1739701842611,-500.0,8.767e-05,2]
[353238759,1739701842620,-286.08420356,8.767e-05,2]
[353238760,1739701842635,-213.91579644,8.767e-05,2]
[353238761,1739701842644,-500.0,8.767e-05,2]
[353238762,1739701842653,-500.0,8.767e-05,2]
[353238763,1739701842662,-300.0,8.767e-05,2]
[353238764,1739701842671,-500.0,8.767e-05,2]
[353238765,1739701842680,-500.0,8.767e-05,2]
[353238766,1739701842689,-500.0,8.767e-05,2]
[353238767,1739701842698,-500.0,8.767e-05,2]
[353238768,1739701842707,-500.0,8.767e-05,2]
[353238769,1739701842716,-500.0,8.767e-05,2]
[353238770,1739701842725,-639.25775914,8.767e-05,2]
[353238771,1739701842734,-500.0,8.767e-05,2]
[353238772,1739701842743,-1197.59,8.767e-05,2]
[353238773,1739701842753,-583.04021555,8.767e-05,2]
[353238774,1739701842762,-500.0,8.767e-05,2]
[353238775,1739701842771,-500.0,8.767e-05,2]
[353238776,1739701842780,-500.0,8.767e-05,2]
[353238777,1739701842789,-620.80016253,8.767e-05,2]
[353238778,1739701842798,-395.21727026,8.767e-05,2]
[353238779,1739701842810,-214.01272974,8.767e-05,2]
[353238780,1739701842819,-156.82834178,8.767e-05,2]
[353238799,1739701843880,-35.30610533,8.767e-05,2]
[353238800,1739701843916,-307.86555289,8.767e-05,2]
[353238801,1739701843927,-500.0,8.767e-05,2]
[353238802,1739701843936,-219.00410104,8.767e-05,2]
[353238826,1739701846691,-280.99589896,8.767e-05,2]
[353238827,1739701846701,-500.0,8.767e-05,2]
[353238828,1739701846710,-500.0,8.767e-05,2]
[353238829,1739701846719,-500.0,8.767e-05,2]
[353238830,1739701846729,-500.0,8.767e-05,2]
[353238832,1739701846738,-709.19,8.767e-05,2]
[353238834,1739701846747,-500.0,8.767e-05,2]
[353238836,1739701846757,-500.0,8.767e-05,2]
[353238838,1739701846766,-500.0,8.767e-05,2]
[353238840,1739701846776,-500.0,8.767e-05,2]
[353238842,1739701846785,-500.0,8.767e-05,2]
[353238844,1739701846795,-665.64,8.767e-05,2]
[353238846,1739701846804,-500.77121331,8.767e-05,2]
[353238848,1739701846814,-581.5,8.767e-05,2]
[353238850,1739701846823,-500.0,8.767e-05,2]
[353238853,1739701846833,-500.0,8.767e-05,2]
[353238855,1739701846843,-500.0,8.767e-05,2]
[353238857,1739701846853,-500.0,8.767e-05,2]
[353238858,1739701846862,-511.39150147,8.767e-05,2]
[353238859,1739701846871,-500.0,8.767e-05,2]
[353238860,1739701846881,-602.72,8.767e-05,2]
[353238862,1739701846890,-507.92366608,8.767e-05,2]
[353238864,1739701846899,-500.0,8.767e-05,2]
[353238866,1739701846908,-500.0,8.767e-05,2]
[353238868,1739701846917,-500.0,8.767e-05,2]
[353238870,1739701846926,-500.0,8.767e-05,2]
[353238871,1739701846935,-500.0,8.767e-05,2]
[353238874,1739701846945,-905.97,8.767e-05,2]
[353238876,1739701846954,-500.0,8.767e-05,2]
[353238878,1739701846964,-500.0,8.767e-05,2]
[353238879,1739701846973,-500.0,8.767e-05,2]
[353238881,1739701846982,-500.0,8.767e-05,2]
[353238884,1739701846992,-500.0,8.767e-05,2]
[353238885,1739701847001,-500.0,8.767e-05,2]
[353238887,1739701847011,-500.0,8.768e-05,2]
[353238889,1739701847020,-271.22264109,8.768e-05,2]
[353238891,1739701847030,-500.0,8.769e-05,2]
[353238893,1739701847040,-500.0,8.769e-05,2]
[353238895,1739701847049,-500.0,8.769e-05,2]
[353238897,1739701847058,-500.0,8.769e-05,2]
[353238899,1739701847069,-500.0,8.769e-05,2]
[353238902,1739701847079,-966.08,8.769e-05,2]
[353238903,1739701847088,-500.0,8.769e-05,2]
[353238905,1739701847099,-500.52690737,8.769e-05,2]
[353238907,1739701847109,-525.12,8.769e-05,2]
[353238909,1739701847118,-500.0,8.769e-05,2]
[353238911,1739701847128,-187.7885143,8.769e-05,2]
[353238912,1739701847138,-500.0,8.769e-05,2]
[353238914,1739701847148,-500.0,8.769e-05,2]
[353238916,1739701847158,-505.54365696,8.769e-05,2]
[353238917,1739701847170,-500.0,8.769e-05,2]
[353238918,1739701847180,-500.0,8.769e-05,2]
[353238919,1739701847190,-500.0,8.769e-05,2]
[353238920,1739701847200,-500.63541477,8.769e-05,2]
[353238921,1739701847210,-502.76290238,8.769e-05,2]
[353238922,1739701847220,-500.0,8.769e-05,2]
[353238923,1739701847230,-402.31143095,8.769e-05,2]
[353238924,1739701847240,-500.0,8.769e-05,2]
[353238925,1739701847250,-500.0,8.769e-05,2]
[353238926,1739701847263,-500.0,8.769e-05,2]
[353238927,1739701847273,-500.0,8.769e-05,2]
[353238928,1739701847283,-457.71176168,8.769e-05,2]
[353238929,1739701847297,-43.83774496,8.769e-05,2]
[353238930,1739701847307,-500.0,8.769e-05,2]
[353238931,1739701847317,-500.0,8.769e-05,2]
[353238932,1739701847327,-500.0,8.769e-05,2]
[353238933,1739701847337,-500.0,8.769e-05,2]
[353238934,1739701847347,-585.12,8.769e-05,2]
[353238935,1739701847357,-500.0,8.769e-05,2]
[353238936,1739701847367,-500.0,8.769e-05,2]
[353238937,1739701847378,-500.0,8.769e-05,2]
[353238938,1739701847388,-1200.22,8.769e-05,2]
[353238939,1739701847398,-500.0,8.769e-05,2]
[353238940,1739701847408,-500.0,8.769e-05,2]
[353238941,1739701847418,-500.0,8.769e-05,2]
[353238942,1739701847431,-500.0,8.769e-05,2]
[353238943,1739701847440,-2036.76,8.769e-05,2]
[353238944,1739701847452,-901.18,8.769e-05,2]
[353238945,1739701847462,-264.746,8.81e-05,2]
[353238946,1739701847471,-179.99,8.81e-05,2]
[353238947,1739701847481,-538.0,8.816e-05,2]
[353238948,1739701847491,-1971.0,8.816e-05,2]
[353238949,1739701847501,-2291.0,8.816e-05,2]
[353238950,1739701847510,-396.0,8.816e-05,2]
[353238951,1739701847520,-3314.51,8.847e-05,2]
[353238952,1739701847530,-500.0,8.847e-05,2]
[353238953,1739701847540,-500.0,8.847e-05,2]
[353238954,1739701847550,-500.0,8.847e-05,2]
[353238955,1739701847561,-500.0,8.847e-05,2]
[353238956,1739701847571,-500.0,8.847e-05,2]
[353238957,1739701847581,-2730.95,8.847e-05,2]
[353238958,1739701847591,-1434.84,8.847e-05,2]
[353238959,1739701847601,-6857.0,8.847e-05,2]
[353238960,1739701847611,-1133.74,8.847e-05,2]
[353238961,1739701847621,-500.0,8.847e-05,2]
[353238962,1739701847631,-500.0,8.847e-05,2]
[353238963,1739701847641,-500.0,8.847e-05,2]
[353238964,1739701847651,-2394.74,8.847e-05,2]
[353238965,1739701847661,-500.0,8.847e-05,2]
[353238966,1739701847672,-1611.02,8.847e-05,2]
[353238967,1739701847683,-500.0,8.847e-05,2]
[353238968,1739701847693,-2819.92,8.847e-05,2]
[353238969,1739701847704,-739.1,8.847e-05,2]
[353238970,1739701847714,-2282.62,8.847e-05,2]
[353238971,1739701847724,-500.0,8.847e-05,2]
[353238972,1739701847734,-658.1,8.847e-05,2]
[353238973,1739701847744,-2329.50925015,8.847e-05,2]
[353239014,1739703032084,-1100.0,8.22e-05,2]
[353239016,1739703032095,-349.07655093,8.76e-05,2]
[353239018,1739703032104,-2279.45,8.762e-05,2]
[353239020,1739703032115,-500.0,8.762e-05,2]
[353239022,1739703032125,-500.0,8.762e-05,2]
[353239024,1739703032135,-500.0,8.762e-05,2]
[353239026,1739703032145,-500.0,8.763e-05,2]
[353239028,1739703032154,-500.0,8.763e-05,2]
[353239030,1739703032164,-500.0,8.763e-05,2]
[353239032,1739703032174,-500.0,8.763e-05,2]
[353239034,1739703032184,-500.0,8.763e-05,2]
[353239036,1739703032195,-500.0,8.763e-05,2]
[353239038,1739703032206,-500.0,8.763e-05,2]
[353239041,1739703032216,-513.00845363,8.763e-05,2]
[353239043,1739703032227,-500.0,8.763e-05,2]
[353239045,1739703032237,-1074.08,8.763e-05,2]
[353239047,1739703032247,-500.0,8.763e-05,2]
[353239049,1739703032257,-165.29292761,8.763e-05,2]
[353239088,1739703037780,-334.70707239,8.763e-05,2]
[353239089,1739703037790,-500.0,8.763e-05,2]
[353239090,1739703037799,-608.79672195,8.763e-05,2]
[353239091,1739703037809,-500.0,8.763e-05,2]
[353239092,1739703037818,-226.76713472,8.763e-05,2]
[353239155,1739703039935,-273.23286528,8.763e-05,2]
[353239157,1739703039948,-295.8925473,8.763e-05,2]
[353239225,1739703042900,-204.1074527,8.763e-05,2]
[353239226,1739703042910,-3158.39,8.763e-05,2]
[353239227,1739703042919,-638.59135519,8.763e-05,2]
[353239228,1739703042928,-500.0,8.763e-05,2]
[353239229,1739703042937,-500.0,8.763e-05,2]
[353239230,1739703042946,-500.0,8.763e-05,2]
[353239231,1739703042955,-550.08500919,8.763e-05,2]
[353239232,1739703042964,-500.0,8.763e-05,2]
[353239233,1739703042973,-500.0,8.763e-05,2]
[353239234,1739703042982,-500.0,8.763e-05,2]
[353239235,1739703042991,-500.0,8.763e-05,2]
[353239236,1739703043000,-500.0,8.763e-05,2]
[353239237,1739703043010,-500.0,8.763e-05,2]
[353239238,1739703043020,-500.0,8.763e-05,2]
[353239239,1739703043029,-500.0,8.763e-05,2]
[353239240,1739703043038,-5534.05953006,8.763e-05,2]
[353239251,1739703045854,-751.53046994,8.763e-05,2]
[353239252,1739703045864,-298.63026314,8.763e-05,2]
[353239253,1739703045873,-650.71801251,8.763e-05,2]
[353239254,1739703045885,-1965.41198749,8.763e-05,2]
[353239255,1739703045895,-811.73514554,8.763e-05,2]
[353239256,1739703045906,-562.06485446,8.763e-05,2]
[353239257,1739703045916,-99.88514554,8.763e-05,2]
[353239258,1739703045942,-2608.63485446,8.763e-05,2]
[353239259,1739703045952,-500.0,8.763e-05,2]
[353239260,1739703045962,-500.0,8.763e-05,2]
[353239262,1739703045971,-500.0,8.763e-05,2]
[353239263,1739703045981,-500.0,8.763e-05,2]
[353239264,1739703045990,-1085.14,8.763e-05,2]
[353239265,1739703046000,-500.0,8.763e-05,2]
[353239266,1739703046009,-500.0,8.763e-05,2]
[353239267,1739703046019,-500.0,8.763e-05,2]
[353239268,1739703046029,-395.04852961,8.763e-05,2]
[353239269,1739703046039,-624.09,8.763e-05,2]
[353239270,1739703046048,-500.0,8.763e-05,2]
[353239271,1739703046058,-500.0,8.763e-05,2]
[353239272,1739703046067,-500.0,8.763e-05,2]
[353239273,1739703046078,-500.0,8.763e-05,2]
[353239274,1739703046087,-500.0,8.763e-05,2]
[353239275,1739703046098,-500.0,8.763e-05,2]
[353239276,1739703046107,-206.38461592,8.763e-05,2]
[353239277,1739703046120,-293.61538408,8.763e-05,2]
[353239278,1739703046129,-500.0,8.763e-05,2]
[353239279,1739703046139,-1559.25,8.763e-05,2]
[353239280,1739703046149,-500.0,8.763e-05,2]
[353239281,1739703046159,-705.2,8.763e-05,2]
[353239282,1739703046169,-500.0,8.763e-05,2]
[353239283,1739703046179,-844.51,8.763e-05,2]
[353239284,1739703046189,-2192.64,8.763e-05,2]
[353239285,1739703046198,-4553.33,8.763e-05,2]
[353239286,1739703046207,-500.0,8.763e-05,2]
[353239287,1739703046217,-500.0,8.763e-05,2]
[353239288,1739703046227,-500.0,8.763e-05,2]
[353239289,1739703046236,-500.0,8.763e-05,2]
[353239290,1739703046246,-691.54,8.763e-05,2]
[353239291,1739703046255,-500.0,8.764e-05,2]
[353239292,1739703046264,-771.45,8.764e-05,2]
[353239293,1739703046273,-500.0,8.764e-05,2]
[353239294,1739703046282,-530.16,8.764e-05,2]
[353239295,1739703046291,-627.47,8.764e-05,2]
[353239296,1739703046300,-500.0,8.764e-05,2]
[353239297,1739703046310,-854.94,8.764e-05,2]
[353239298,1739703046319,-632.99,8.764e-05,2]
[353239299,1739703046328,-500.0,8.764e-05,2]
[353239300,1739703046337,-500.0,8.764e-05,2]
[353239301,1739703046346,-500.0,8.764e-05,2]
[353239302,1739703046356,-500.0,8.764e-05,2]
[353239303,1739703046365,-667.64,8.764e-05,2]
[353239304,1739703046374,-500.0,8.764e-05,2]
[353239305,1739703046383,-840.12,8.764e-05,2]
[353239306,1739703046393,-500.0,8.764e-05,2]
[353239307,1739703046403,-500.0,8.764e-05,2]
[353239308,1739703046412,-720.27,8.764e-05,2]
[353239309,1739703046421,-654.06,8.764e-05,2]
[353239310,1739703046431,-500.0,8.764e-05,2]
[353239311,1739703046440,-500.0,8.764e-05,2]
[353239312,1739703046450,-615.45,8.764e-05,2]
[353239313,1739703046459,-500.0,8.764e-05,2]
[353239314,1739703046469,-500.0,8.764e-05,2]
[353239315,1739703046478,-500.0,8.764e-05,2]
[353239316,1739703046488,-1770.56,8.764e-05,2]
[353239317,1739703046498,-585.69355321,8.764e-05,2]
[353239318,1739703046507,-500.0,8.764e-05,2]
[353239319,1739703046517,-1439.1,8.764e-05,2]
[353239320,1739703046526,-500.0,8.764e-05,2]
[353239321,1739703046536,-1123.82,8.764e-05,2]
[353239322,1739703046545,-500.0,8.764e-05,2]
[353239323,1739703046554,-832.81,8.764e-05,2]
[353239324,1739703046566,-328.1730189,8.764e-05,2]
[353239325,1739703046577,-500.0,8.764e-05,2]
[353239326,1739703046587,-954.65,8.764e-05,2]
[353239327,1739703046597,-905.56,8.764e-05,2]
[353239328,1739703046607,-594.61,8.764e-05,2]
[353239329,1739703046616,-1764.1,8.764e-05,2]
[353239330,1739703046626,-500.0,8.764e-05,2]
[353239331,1739703046637,-1157.65,8.764e-05,2]
[353239332,1739703046647,-512.84,8.764e-05,2]
[353239333,1739703046657,-500.0,8.764e-05,2]
[353239334,1739703046666,-500.0,8.764e-05,2]
[353239335,1739703046676,-500.0,8.764e-05,2]
[353239336,1739703046686,-500.0,8.764e-05,2]
[353239337,1739703046695,-500.0,8.764e-05,2]
[353239338,1739703046705,-500.0,8.764e-05,2]
[353239339,1739703046714,-500.0,8.764e-05,2]
[353239340,1739703046723,-570.92,8.764e-05,2]
[353239341,1739703046734,-635.2,8.764e-05,2]
[353239342,1739703046744,-500.0,8.764e-05,2]
[353239343,1739703046753,-500.0,8.764e-05,2]